bitfinex/quotes_SOLUSD_20241113
["timestamp","ask_amount","ask_price","bid_price","bid_amount"]
[1731491207803,4.8356,206.8,206.73,39.3461521]
[1731491208109,22.4162521,206.81,206.73,39.3461521]
[1731491208320,22.4162521,206.81,206.73,351.3461521]
[1731491208501,15.031,206.82,206.75,22.4162521]
[1731491209103,15.031,206.82,206.77,22.4162521]
[1731491209313,22.4162521,206.84,206.77,22.4162521]
[1731491209505,6.2881,206.85,206.79,22.4162521]
[1731491209904,11.103,206.91,206.83,22.4162521]
[1731491210105,11.103,206.91,206.86,22.4162521]
[1731491210306,11.103,206.91,206.84,22.4162521]
[1731491211414,11.103,206.91,206.84,27.2506521]
[1731491212005,11.103,206.91,206.84,339.2506521]
[1731491212200,6.27,206.91,206.84,339.2506521]
[1731491212402,6.27,206.91,206.86,22.4162521]
[1731491213017,16.3738,206.92,206.86,22.4162521]
[1731491213609,16.3738,206.92,206.86,27.2502521]
[1731491214320,6.3649,206.96,206.9,22.4162521]
[1731491214519,6.3649,206.96,206.92,22.4162521]
[1731491214703,6.3649,206.96,206.9,22.4162521]
[1731491214907,15.0324,206.97,206.92,22.4162521]
[1731491215107,48.9172521,207.02,206.94,22.4162521]
[1731491215624,4.8311,206.99,206.9,27.2494521]
[1731491216123,22.4162521,206.98,206.9,27.2494521]
[1731491217323,27.2476521,206.98,206.91,312.0]
[1731491219607,4.8314,206.98,206.91,316.8329]
[1731491220426,22.4162521,207.0,206.91,316.8329]
[1731491220427,27.2472521,207.0,206.91,328.9154]
[1731491220635,44.0866521,207.02,206.94,22.4162521]
[1731491220933,21.6704,207.02,206.92,22.4162521]
[1731491221225,22.4162521,207.01,206.92,22.4162521]
[1731491221727,22.4162521,206.99,206.91,12.0825]
[1731491221929,22.4162521,206.99,206.91,16.9155]
[1731491222227,22.4162521,207.01,206.92,22.4162521]
[1731491222432,4.8307,207.01,206.94,22.4162521]
[1731491222833,27.2469521,207.01,206.92,22.4162521]
[1731491223136,22.4162521,206.99,206.91,16.9155]
[1731491223612,22.4162521,207.01,206.94,22.4162521]
[1731491223808,26.501,207.02,206.94,22.4162521]
[1731491224521,21.6704,207.02,206.96,22.4162521]
[1731491225405,21.6704,207.02,206.91,41.0805]
[1731491225406,26.5009,207.02,206.91,12.0825]
[1731491225607,22.4162521,206.93,206.83,22.4162521]
[1731491225813,22.4162521,206.93,206.85,22.4162521]
[1731491226821,22.4162521,206.97,206.9,22.4162521]
[1731491227026,22.4162521,207.01,206.92,22.4162521]
[1731491227210,21.6704,207.02,206.96,22.4162521]
[1731491228921,21.6704,207.02,206.95,13.9879818]
[1731491229337,4.8299,207.05,206.97,13.9879818]
[1731491229513,13.9879818,207.06,206.97,13.9879818]
[1731491229720,18.8174818,207.06,206.97,13.9879818]
[1731491230218,13.9879818,207.0,206.91,23.776884]
[1731491230420,13.9879818,207.0,206.86,30.5799]
[1731491230421,13.9879818,206.94,206.86,12.0852]
[1731491231029,13.9879818,206.9,206.81,26.0760818]
[1731491231428,13.9879818,206.92,206.83,13.9879818]
[1731491231835,13.9879818,206.9,206.81,30.9113818]
[1731491232827,27.24441232,206.9,206.81,39.33451232]
[1731491233037,22.41111232,206.86,206.77,39.33791232]
[1731491233543,22.41111232,206.84,206.77,16.9268]
[1731491233740,22.41111232,206.84,206.77,39.33791232]
[1731491233918,27.24441232,206.9,206.79,22.41111232]
[1731491233919,22.41111232,206.88,206.79,22.41111232]
[1731491234238,22.41111232,206.86,206.79,312.0]
[1731491234540,27.24531232,206.86,206.79,312.0]
[1731491235334,22.41111232,206.84,206.75,27.24771232]
[1731491235528,22.41111232,206.82,206.75,22.41111232]
[1731491235724,22.41111232,206.84,206.77,22.41111232]
[1731491235934,21.9692,206.85,206.77,22.41111232]
[1731491236618,21.9692,206.85,206.77,16.9268]
[1731491236834,4.8334,206.89,206.81,22.41111232]
[1731491237225,22.41111232,206.88,206.81,22.41111232]
[1731491238064,22.41111232,206.84,206.77,12.0907]
[1731491238237,22.41111232,206.86,206.77,351.33801232]
[1731491238425,22.41111232,206.88,206.79,22.41111232]
[1731491238618,4.8339,206.87,206.81,22.41111232]
[1731491239944,21.3608,206.9,206.85,22.41111232]
[1731491240130,162.4,206.94,206.85,22.41111232]
[1731491240131,22.41111232,206.94,206.85,22.41111232]
[1731491240325,4.8327,206.93,206.87,22.41111232]
[1731491240531,26.193,206.95,206.87,22.41111232]
[1731491240726,26.193,206.95,206.81,16.9235]
[1731491240727,26.193,206.95,206.86,22.41111232]
[1731491240926,22.41111232,206.93,206.86,22.41111232]
[1731491241141,48.60411232,206.95,206.86,22.41111232]
[1731491241643,48.60411232,206.95,206.86,334.41111232]
[1731491243938,10.9132,206.95,206.88,22.41111232]
[1731491244843,4.8318,206.97,206.9,22.41111232]
[1731491246636,27.24291232,206.97,206.88,22.41111232]
[1731491247032,27.24291232,206.97,206.88,334.41111232]
[1731491247433,4.8313,206.99,206.92,22.41111232]
[1731491248035,23.1868,207.0,206.94,22.41111232]
[1731491248343,27.24181232,207.01,206.92,22.41111232]
[1731491248848,4.8307,207.01,206.94,22.41111232]
[1731491249240,22.41111232,206.98,206.88,20.0]
[1731491249444,22.41111232,206.98,206.9,22.41111232]
[1731491249751,22.53660232,207.0,206.92,22.41111232]
[1731491250135,4.8307,207.01,206.94,22.41111232]
[1731491250539,4.8307,207.01,206.94,334.41111232]
[1731491250739,4.8307,207.01,206.94,339.24331232]
[1731491250937,27.24121232,207.04,206.96,22.41111232]
[1731491252052,27.24121232,207.04,206.96,27.24271232]
[1731491254550,27.24121232,207.04,206.94,12.0807]
[1731491254551,22.41111232,207.02,206.94,34.49181232]
[1731491254857,13.99089716,207.02,206.94,30.90389716]
[1731491255349,13.99089716,207.02,206.94,26.07159716]
[1731491255539,22.5441,207.05,206.98,13.99089716]
[1731491255737,13.99089716,207.04,206.96,13.99089716]
[1731491256151,13.99089716,207.02,206.94,26.07159716]
[1731491256454,13.99089716,207.02,206.94,30.90389716]
[1731491256661,18.82129716,207.02,206.94,30.90389716]
[1731491257661,18.82129716,207.02,206.94,13.99089716]
[1731491257948,18.82129716,207.02,206.86,16.6653]
[1731491257949,13.99089716,206.96,206.86,35.49019716]
[1731491258154,13.99089716,207.0,206.92,13.99089716]
[1731491258333,18.82129716,207.02,206.94,13.99089716]
[1731491258535,13.99089716,207.02,206.94,13.99089716]
[1731491258736,2.21600218,207.09,206.93,0.12549]
[1731491258737,4.8288,207.09,206.93,0.12549]
[1731491258935,13.99089716,207.06,206.98,13.99089716]
[1731491259746,13.99089716,207.04,206.94,13.99089716]
[1731491259944,13.99089716,207.02,206.92,13.99089716]
[1731491261261,4.8306,207.01,206.93,4.8325]
[1731491261847,13.99089716,206.98,206.93,312.0]
[1731491262045,13.99089716,206.96,206.89,4.8334]
[1731491262352,13.99089716,207.0,206.92,13.99089716]
[1731491263157,13.99089716,207.02,206.94,13.99089716]
[1731491263361,18.82129716,207.02,206.95,4.832]
[1731491263944,18.82129716,207.02,206.94,13.99089716]
[1731491264140,13.99089716,207.0,206.92,18.82359716]
[1731491264342,18.82129716,207.02,206.94,13.99089716]
[1731491264539,4.8304,207.02,206.96,13.99089716]
[1731491264745,18.81989716,207.08,207.0,13.99089716]
[1731491266575,13.99089716,207.06,206.98,13.99089716]
[1731491268459,13.99089716,207.06,206.98,325.99089716]
[1731491268662,4.8294,207.07,207.0,13.99089716]
[1731491268870,21.1261,207.1,207.04,13.99089716]
[1731491269053,25.9547,207.1,207.04,13.99089716]
[1731491269358,21.1261,207.1,207.06,13.99089716]
[1731491269543,4.8284,207.11,207.06,13.99089716]
[1731491269746,14.47670066,207.14,207.06,13.99089716]
[1731491270758,19.30430066,207.14,207.06,18.82039716]
[1731491271253,0.4858035,207.14,207.08,13.99089716]
[1731491271460,0.4858035,207.14,207.1,13.99089716]
[1731491271774,0.4858035,207.14,207.08,13.99089716]
[1731491272063,0.4858035,207.14,207.08,325.99089716]
[1731491272258,0.4858035,207.14,207.12,13.99089716]
[1731491272846,0.4858035,207.14,207.13,22.34247752]
[1731491274044,0.4858035,207.14,207.11,34.41317752]
[1731491274244,0.4858035,207.14,207.09,22.34247752]
[1731491275465,27.65588102,207.14,207.06,4.8293]
[1731491275871,0.4858035,207.14,207.09,22.34247752]
[1731491276157,0.4858035,207.14,207.11,22.34247752]
[1731491276467,0.4858035,207.14,207.09,22.34247752]
[1731491277066,0.4858035,207.14,207.09,27.17117752]
[1731491277566,0.4858035,207.14,207.09,39.24317752]
[1731491279166,0.4858035,207.14,207.09,351.24317752]
[1731491279747,0.4858035,207.14,207.07,22.34247752]
[1731491279947,27.65608102,207.14,207.07,22.34247752]
[1731491280557,27.65608102,207.14,207.06,4.8294]
[1731491280753,27.65608102,207.14,207.05,27.17207752]
[1731491282366,5.3136035,207.14,207.07,22.34247752]
[1731491282665,0.4858035,207.14,207.05,16.9039]
[1731491282857,0.4858035,207.14,207.11,22.34247752]
[1731491284269,0.4858035,207.14,207.13,22.34247752]
[1731491284955,0.4858035,207.14,207.13,42.34247752]
[1731491286374,0.4858035,207.14,207.13,354.34247752]
[1731491287078,0.4858035,207.14,207.13,42.34247752]
[1731491287367,0.4858035,207.14,207.12,16.8983]
[1731491287682,0.4858035,207.14,207.13,22.34247752]
[1731491291872,0.4858035,207.14,207.09,22.34247752]
[1731491292260,27.65598102,207.14,207.07,22.34247752]
[1731491292460,23.902374,207.13,207.07,22.34247752]
[1731491292671,27.65598102,207.14,207.07,22.34247752]
[1731491292872,19.28838789,207.14,207.06,13.97488439]
[1731491293077,0.4858035,207.14,207.08,13.97488439]
[1731491294074,0.4858035,207.14,207.1,13.97488439]
[1731491294474,0.4858035,207.14,207.12,13.97488439]
[1731491294780,0.4858035,207.14,207.12,325.97488439]
[1731491294963,0.4858035,207.14,207.12,330.80288439]
[1731491295156,0.4858035,207.14,207.1,26.04588439]
[1731491295363,0.4858035,207.14,207.1,30.87438439]
[1731491295570,5.3134035,207.14,207.08,18.80368439]
[1731491295877,19.28828789,207.14,207.06,13.97488439]
[1731491296055,13.97488439,207.12,207.04,13.97488439]
[1731491296260,13.97488439,207.08,207.0,18.80568439]
[1731491296481,13.97488439,207.08,207.0,30.88288439]
[1731491296661,6.5253,207.09,207.02,13.97488439]
[1731491296857,0.4858035,207.14,207.08,13.97488439]
[1731491297063,0.4858035,207.14,207.11,13.97488439]
[1731491297568,0.4858035,207.14,207.09,13.97488439]
[1731491297764,5.3135035,207.14,207.07,13.97488439]
[1731491298283,5.3135035,207.14,207.09,13.97488439]
[1731491298789,5.3135035,207.14,207.08,22.35521154]
[1731491299758,0.4858035,207.14,207.1,22.35521154]
[1731491299967,0.4858035,207.14,207.12,22.35521154]
[1731491301178,0.4858035,207.14,207.12,27.18321154]
[1731491301375,0.4858035,207.14,207.12,39.25341154]
[1731491301978,0.4858035,207.14,207.13,20.0]
[1731491302669,21.2568,207.29,207.15,20.1]
[1731491302867,21.2568,207.29,207.24,22.35521154]
[1731491303177,16.4327,207.29,207.24,22.35521154]
[1731491303562,4.8236,207.32,207.26,22.35521154]
[1731491303861,16.9185035,207.34,207.28,22.35521154]
[1731491304065,0.4858035,207.34,207.32,22.35521154]
[1731491305369,0.4858035,207.34,207.32,27.17861154]
[1731491306068,0.4858035,207.34,207.32,22.35521154]
[1731491306267,0.4858035,207.34,207.32,39.23711154]
[1731491306472,0.4858035,207.34,207.32,351.23711154]
[1731491306876,0.4858035,207.34,207.32,346.41381154]
[1731491307267,0.4858035,207.34,207.32,351.23721154]
[1731491309078,0.4858035,207.34,207.33,20.0]
[1731491310062,0.4858035,207.34,207.32,22.35521154]
[1731491310267,5.3088035,207.34,207.28,22.35521154]
[1731491310469,0.4858035,207.34,207.31,22.35521154]
[1731491310668,0.4858035,207.34,207.33,22.35521154]
[1731491311069,0.4858035,207.34,207.31,22.35521154]
[1731491311269,5.3088035,207.34,207.29,22.35521154]
[1731491312384,22.48070154,207.33,207.25,22.35521154]
[1731491313115,22.35521154,207.33,207.25,22.35521154]
[1731491313287,0.4858035,207.34,207.29,22.35521154]
[1731491313867,0.4858035,207.34,207.31,22.35521154]
[1731491314270,0.4858035,207.34,207.33,22.35521154]
[1731491315188,0.4858035,207.34,207.33,354.35521154]
[1731491315669,0.4858035,207.34,207.33,359.17841154]
[1731491315871,0.4858035,207.34,207.33,71.08078554]
[1731491316184,10.8849,207.48,207.34,43.902374]
[1731491316388,6.0651,207.48,207.43,22.35521154]
[1731491316590,21.3813,207.47,207.43,22.35521154]
[1731491317190,16.5613,207.47,207.43,22.35521154]
[1731491317373,6.0651,207.48,207.43,22.35521154]
[1731491317573,10.8848,207.48,207.43,22.35521154]
[1731491318489,0.12549,207.47,207.41,22.35521154]
[1731491318698,0.12549,207.47,207.39,22.35521154]
[1731491318992,0.12549,207.47,207.39,334.35521154]
[1731491319186,10.8849,207.48,207.43,22.35521154]
[1731491321974,33.24011154,207.48,207.39,22.35521154]
[1731491322178,33.24011154,207.48,207.41,22.35521154]
[1731491325095,27.17541154,207.46,207.37,22.35521154]
[1731491327701,28.42031154,207.48,207.41,22.35521154]
[1731491328580,4.8199,207.47,207.39,22.35521154]
[1731491328996,4.8199,207.47,207.41,22.35521154]
[1731491329199,4.8199,207.47,207.39,22.35521154]
[1731491332795,6.0651,207.48,207.44,13.92290604]
[1731491332993,4.819,207.51,207.44,13.92290604]
[1731491334708,4.819,207.51,207.44,325.92290604]
[1731491334884,4.819,207.51,207.44,334.27645595]
[1731491335401,15.7116,207.52,207.48,22.27645595]
[1731491335626,15.7116,207.52,207.46,22.27645595]
[1731491336607,15.7116,207.52,207.48,22.27645595]
[1731491337307,20.5304,207.52,207.48,22.27645595]
[1731491337911,20.5304,207.52,207.46,22.27645595]
[1731491338294,20.5304,207.52,207.46,334.27645595]
[1731491340015,4.8185,207.54,207.46,339.09645595]
[1731491340405,4.8185,207.54,207.46,334.27645595]
[1731491341499,4.8185,207.54,207.48,22.27645595]
[1731491341811,4.8185,207.54,207.48,27.09605595]
[1731491344218,0.4858035,207.55,207.5,22.27645595]
[1731491344404,0.4858035,207.55,207.48,16.8689]
[1731491344405,0.4858035,207.55,207.52,22.27645595]
[1731491344710,0.4858035,207.55,207.54,22.27645595]
[1731491344917,0.4858035,207.55,207.52,22.27645595]
[1731491345116,27.58035945,207.55,207.44,12.0514]
[1731491345298,27.58035945,207.55,207.48,312.0]
[1731491345498,5.3039035,207.55,207.49,22.27645595]
[1731491345800,27.58045945,207.55,207.48,312.0]
[1731491346212,0.4858035,207.55,207.48,34.32575595]
[1731491346404,0.4858035,207.55,207.48,39.14535595]
[1731491346604,27.58035945,207.55,207.48,34.32575595]
[1731491347319,27.58035945,207.55,207.48,22.27645595]
[1731491347817,22.27645595,207.51,207.44,16.8718]
[1731491348326,27.09555595,207.51,207.44,16.8718]
[1731491349197,27.09555595,207.51,207.46,312.0]
[1731491349395,22.27645595,207.49,207.46,312.0]
[1731491349600,22.27645595,207.47,207.4,12.0537]
[1731491349918,22.27645595,207.47,207.39,22.27645595]
[1731491350320,22.27645595,207.45,207.37,22.27645595]
[1731491350515,22.27645595,207.49,207.41,22.27645595]
[1731491350829,26.0075,207.51,207.45,22.27645595]
[1731491351805,26.0075,207.51,207.45,27.09685595]
[1731491352528,26.0075,207.51,207.48,312.0]
[1731491352723,21.1884,207.51,207.48,312.0]
[1731491352898,0.4858035,207.55,207.49,22.27645595]
[1731491353630,0.4858035,207.55,207.51,22.27645595]
[1731491354014,5.3039035,207.55,207.49,22.27645595]
[1731491354824,5.3039035,207.55,207.48,13.91654378]
[1731491355320,5.3039035,207.55,207.48,18.73604378]
[1731491356018,5.3039035,207.55,207.51,312.0]
[1731491357227,19.22044728,207.55,207.51,312.0]
[1731491357913,13.91654378,207.53,207.44,13.91654378]
[1731491358109,13.91654378,207.49,207.42,25.96914378]
[1731491358321,13.91654378,207.47,207.38,25.97144378]
[1731491358728,22.6557,207.44,207.34,16.8803]
[1731491358928,22.6557,207.44,207.35,13.91654378]
[1731491359130,22.6557,207.44,207.39,13.91654378]
[1731491359331,27.4764,207.44,207.37,13.91654378]
[1731491359518,28.595384,207.53,207.41,13.91654378]
[1731491359717,13.91654378,207.47,207.39,13.91654378]
[1731491359913,28.695384,207.53,207.35,16.8795]
[1731491359914,13.91654378,207.49,207.41,13.91654378]
[1731491360333,13.91654378,207.51,207.41,13.91654378]
[1731491360837,13.91654378,207.47,207.45,312.0]
[1731491361216,4.8202,207.46,207.39,13.91654378]
[1731491361436,13.91654378,207.49,207.39,18.73824378]
[1731491361817,13.91654378,207.49,207.39,13.91654378]
[1731491362017,13.91654378,207.45,207.37,13.91654378]
[1731491362241,13.91654378,207.45,207.35,13.91654378]
[1731491362428,13.91654378,207.43,207.35,13.91654378]
[1731491362624,13.91654378,207.47,207.37,13.91654378]
[1731491362844,4.819,207.51,207.43,13.91654378]
[1731491364231,36.76584378,207.54,207.45,325.91654378]
[1731491364424,4.8186,207.53,207.45,325.91654378]
[1731491364834,4.8186,207.53,207.46,22.27171278]
[1731491365520,4.8186,207.53,207.46,27.09181278]
[1731491367131,4.8186,207.53,207.46,39.14231278]
[1731491367942,4.8186,207.53,207.49,312.0]
[1731491370429,4.8186,207.53,207.46,12.0505]
[1731491371330,4.8186,207.53,207.46,39.14241278]
[1731491371542,22.8493,207.54,207.48,22.27171278]
[1731491372442,22.8493,207.54,207.5,22.27171278]
[1731491372761,27.6678,207.54,207.48,22.27171278]
[1731491373041,0.4858035,207.55,207.45,40.9735]
[1731491373246,0.4858035,207.55,207.52,22.27171278]
[1731491373546,0.4858035,207.55,207.53,312.0]
[1731491374040,0.4858035,207.55,207.54,22.27171278]
[1731491374446,0.4858035,207.55,207.54,27.09001278]
[1731491374849,0.4858035,207.55,207.54,47.09001278]
[1731491375663,0.4858035,207.55,207.54,70.96689678]
[1731491375833,26.2178,207.69,207.64,22.27171278]
[1731491376233,22.27171278,207.67,207.58,22.27171278]
[1731491376536,4.8155,207.66,207.58,22.27171278]
[1731491377149,4.8155,207.66,207.6,312.0]
[1731491377322,22.27171278,207.63,207.54,12.0458]
[1731491377522,0.12549,207.65,207.56,22.27171278]
[1731491377523,22.27171278,207.65,207.56,22.27171278]
[1731491377935,4.8155,207.66,207.58,22.27171278]
[1731491378341,22.27171278,207.65,207.56,22.27171278]
[1731491378539,22.27171278,207.65,207.57,4.8176]
[1731491378925,22.27171278,207.61,207.54,12.0458]
[1731491379130,22.27171278,207.63,207.54,16.8641]
[1731491379346,22.27171278,207.63,207.55,22.27171278]
[1731491379848,4.816,207.65,207.57,22.27171278]
[1731491379849,27.08771278,207.65,207.57,22.27171278]
[1731491380433,27.08771278,207.65,207.61,312.0]
[1731491380637,22.27171278,207.69,207.61,334.27171278]
[1731491380949,22.27171278,207.69,207.61,312.0]
[1731491381149,22.27171278,207.69,207.6,4.8168]
[1731491381445,4.8139,207.73,207.63,22.27171278]
[1731491381640,4.8139,207.73,207.65,22.27171278]
[1731491381943,22.27171278,207.72,207.63,22.27171278]
[1731491382151,22.27171278,207.72,207.65,22.27171278]
[1731491382352,22.27171278,207.72,207.63,22.27171278]
[1731491382647,4.8144,207.71,207.64,4.816]
[1731491383035,0.4858035,207.75,207.64,4.816]
[1731491383036,4.8141,207.73,207.65,22.27171278]
[1731491383530,27.08541278,207.74,207.65,22.27171278]
[1731491383848,27.08541278,207.74,207.67,22.27171278]
[1731491384230,5.2993035,207.75,207.7,312.0]
[1731491385130,5.2993035,207.75,207.68,18.70536103]
[1731491385331,5.2993035,207.75,207.6,20.0]
[1731491385631,13.89036103,207.74,207.67,13.89036103]
[1731491386040,0.4858035,207.75,207.71,13.89036103]
[1731491386933,0.4858035,207.75,207.73,13.89036103]
[1731491387133,0.4858035,207.75,207.69,13.89036103]
[1731491387454,5.2993035,207.75,207.69,13.89036103]
[1731491388177,0.4858035,207.75,207.69,325.89036103]
[1731491388349,0.4858035,207.75,207.71,13.89036103]
[1731491389040,0.4858035,207.75,207.71,18.70456103]
[1731491389853,0.4858035,207.75,207.73,13.89036103]
[1731491390256,0.4858035,207.75,207.73,30.73906103]
[1731491390452,0.4858035,207.75,207.74,20.0]
[1731491392440,0.4858035,207.75,207.74,20.22549]
[1731491392638,0.4858035,207.75,207.74,20.12549]
[1731491392845,0.4858035,207.75,207.74,20.0]
[1731491393158,0.4858035,207.75,207.74,332.12549]
[1731491393343,0.4858035,207.75,207.74,332.0]
[1731491393545,0.4858035,207.75,207.74,332.1]
[1731491394256,0.4858035,207.75,207.74,332.0]
[1731491394462,7.93847478,207.76,207.75,38.92925103]
[1731491394638,7.93847478,207.76,207.75,38.82925103]
[1731491394838,7.93847478,207.76,207.75,38.92925103]
[1731491395040,5.29947478,207.76,207.75,54.04205103]
[1731491395555,5.29947478,207.76,207.75,53.94205103]
[1731491395739,5.29947478,207.76,207.75,54.04205103]
[1731491396250,4.8099,207.91,207.79,0.1]
[1731491396454,18.70026103,207.91,207.83,13.89036103]
[1731491396645,13.89036103,207.89,207.82,20.0]
[1731491396841,0.4858035,207.95,207.87,13.89036103]
[1731491397042,4.8094,207.93,207.9,13.89036103]
[1731491397243,4.8094,207.93,207.88,13.89036103]
[1731491397458,13.89036103,207.92,207.82,13.89036103]
[1731491397668,13.89036103,207.92,207.84,312.0]
[1731491398054,13.89036103,207.92,207.84,325.89036103]
[1731491398243,0.4858035,207.95,207.9,13.89036103]
[1731491398562,13.89036103,207.92,207.84,12.0284]
[1731491398748,24.98526103,207.94,207.85,13.89036103]
[1731491398949,16.8724035,207.95,207.89,13.89036103]
[1731491399148,0.4858035,207.95,207.89,13.89036103]
[1731491399765,0.4858035,207.95,207.91,13.89036103]
[1731491400262,0.4858035,207.95,207.87,13.89036103]
[1731491400472,0.4858035,207.95,207.85,20.0]
[1731491400473,13.89036103,207.94,207.86,20.0]
[1731491400640,0.4858035,207.95,207.9,20.0]
[1731491400843,0.4858035,207.95,207.88,0.1]
[1731491400844,0.4858035,207.95,207.92,22.16974079]
[1731491401261,0.4858035,207.95,207.92,334.16974079]
[1731491401660,0.4858035,207.95,207.94,22.16974079]
[1731491402453,0.4858035,207.95,207.93,24.8091]
[1731491403193,0.4858035,207.95,207.9,2.25525421]
[1731491403346,0.4858035,207.95,207.89,24.8101]
[1731491403547,0.4858035,207.95,207.89,4.8101]
[1731491404963,0.4858035,207.95,207.89,24.8101]
[1731491405158,0.4858035,207.95,207.89,20.0]
[1731491406351,0.4858035,207.95,207.89,24.81]
[1731491406758,22.65554429,207.95,207.89,24.81]
[1731491407146,20.70092489,207.95,207.89,24.32148021]
[1731491407755,4.8073,208.02,207.9,22.16974079]
[1731491408079,22.16974079,207.98,207.9,22.16974079]
[1731491408453,22.16974079,207.98,207.91,16.8341]
[1731491409068,22.16974079,208.0,207.92,22.16974079]
[1731491409375,22.16974079,207.98,207.91,16.8341]
[1731491409567,22.16974079,207.96,207.89,20.0]
[1731491409950,22.16974079,207.93,207.89,20.0]
[1731491410166,22.16974079,207.93,207.87,20.0]
[1731491410365,22.16974079,207.93,207.85,24.8111]
[1731491410877,22.16974079,207.89,207.81,16.8418]
[1731491411071,22.16974079,207.87,207.8,19.229352]
[1731491411251,22.16974079,207.85,207.83,312.0]
[1731491411572,22.16974079,207.87,207.83,312.0]
[1731491412867,26.98054079,207.87,207.83,312.0]
[1731491413781,22.16974079,207.85,207.83,312.0]
[1731491414076,22.16974079,207.85,207.76,22.16974079]
[1731491414847,22.16974079,207.85,207.76,26.98284079]
[1731491415050,26.98104079,207.85,207.76,26.98284079]
[1731491415272,22.16974079,207.81,207.72,34.20474079]
[1731491415974,22.16974079,207.77,207.7,22.16974079]
[1731491416153,22.16974079,207.77,207.68,22.16974079]
[1731491416353,6.1247,207.83,207.68,22.16974079]
[1731491416354,22.16974079,207.75,207.68,22.16974079]
[1731491416549,22.16974079,207.73,207.63,22.16974079]
[1731491416954,22.16974079,207.77,207.69,22.16974079]
[1731491417154,26.98224079,207.79,207.71,22.16974079]
[1731491417354,22.16974079,207.73,207.68,312.0]
[1731491417553,22.16974079,207.73,207.65,22.16974079]
[1731491417754,22.16974079,207.75,207.67,22.16974079]
[1731491418056,22.16974079,207.77,207.67,22.16974079]
[1731491418258,22.16974079,207.75,207.67,22.16974079]
[1731491418771,4.8137,207.74,207.67,22.16974079]
[1731491419079,22.16974079,207.77,207.69,22.16974079]
[1731491420377,4.8132,207.76,207.69,22.16974079]
[1731491420572,4.8132,207.76,207.73,312.0]
[1731491420969,20.0031,207.8,207.73,312.0]
[1731491421278,20.0031,207.8,207.71,22.16974079]
[1731491421574,22.16974079,207.79,207.71,22.16974079]
[1731491421958,4.8127,207.78,207.71,22.16974079]
[1731491422570,4.8127,207.78,207.69,34.20684079]
[1731491422859,4.8127,207.78,207.69,39.02164079]
[1731491423059,4.8127,207.78,207.71,22.16974079]
[1731491423361,4.8127,207.78,207.69,34.20684079]
[1731491423574,22.16974079,207.74,207.67,22.16974079]
[1731491424074,4.8139,207.73,207.69,312.0]
[1731491424679,4.8139,207.73,207.65,22.16974079]
[1731491424856,28.78874079,207.72,207.63,22.16974079]
[1731491425060,22.16974079,207.7,207.63,22.16974079]
[1731491425880,28.78874079,207.72,207.63,22.16974079]
[1731491426179,4.8144,207.71,207.63,22.16974079]
[1731491427459,4.8144,207.71,207.64,312.0]
[1731491428577,6.619,207.72,207.64,312.0]
[1731491428768,4.8144,207.71,207.65,13.89420353]
[1731491429088,13.89420353,207.69,207.64,312.0]
[1731491429381,13.89420353,207.67,207.64,312.0]
[1731491429581,13.89420353,207.67,207.59,13.89420353]
[1731491429964,29.80950353,207.69,207.61,13.89420353]
[1731491430171,11.4332,207.72,207.65,13.89420353]
[1731491430764,11.4332,207.72,207.6,13.89420353]
[1731491430765,20.7291,207.74,207.69,13.89420353]
[1731491431380,20.7291,207.74,207.67,13.89420353]
[1731491432475,34.62330353,207.74,207.67,325.89420353]
[1731491432893,42.95947602,207.74,207.67,312.0]
[1731491433367,42.95947602,207.74,207.59,14.40729427]
[1731491433368,22.23037602,207.68,207.59,22.23037602]
[1731491433571,22.23037602,207.66,207.56,22.23037602]
[1731491434481,22.23037602,207.66,207.55,4.8179]
[1731491434482,22.23037602,207.66,207.58,22.23037602]
[1731491434666,4.8157,207.65,207.58,22.23037602]
[1731491435275,4.8157,207.65,207.58,27.04767602]
[1731491436087,4.8157,207.65,207.58,22.23037602]
[1731491436376,22.23037602,207.64,207.6,312.0]
[1731491436684,4.8162,207.63,207.6,312.0]
[1731491437367,22.23037602,207.62,207.54,22.23037602]
[1731491437982,20.009,207.63,207.54,22.23037602]
[1731491438194,20.009,207.63,207.56,22.23037602]
[1731491438365,20.009,207.63,207.58,22.23037602]
[1731491438366,4.8162,207.63,207.58,22.23037602]
[1731491438571,22.23037602,207.66,207.58,22.23037602]
[1731491438781,4.8157,207.65,207.56,27.04817602]
[1731491438977,22.23037602,207.64,207.56,27.04817602]
[1731491439766,4.8162,207.63,207.56,27.04817602]
[1731491439969,21.8451,207.62,207.4,4.823]
[1731491440262,21.8451,207.62,207.19,16.0485]
[1731491440263,7.53964756,207.3,207.29,312.0]